bitfinex/quotes_SOLUSD_20250506
["timestamp","ask_amount","ask_price","bid_price","bid_amount"]
[1746535700659,6.97593303,143.35,143.32,28.94539502]
[1746535702781,6.97593303,143.35,143.32,13.84]
[1746535702951,6.97593303,143.35,143.32,28.94539502]
[1746535703351,6.97593303,143.35,143.31,27.6154]
[1746535703653,6.97593303,143.35,143.32,15.10539502]
[1746535703878,67.36043357,143.34,143.31,26.0]
[1746535704179,67.36043357,143.34,143.32,15.10539502]
[1746535704470,6.97690643,143.33,143.32,15.10539502]
[1746535709068,6.97690643,143.33,143.31,15.10539502]
[1746535709762,6.97690643,143.33,143.32,15.10539502]
[1746535713778,6.97690643,143.33,143.32,9.61959707]
[1746535716485,6.97690643,143.33,143.3,6.4622]
[1746535716865,6.97690643,143.33,143.31,9.61959707]
[1746535717385,74.33699622,143.34,143.32,9.61959707]
[1746535717879,74.33699622,143.34,143.33,9.61959707]
[1746535717880,67.36043357,143.34,143.33,9.61959707]
[1746535718185,74.33685327,143.34,143.33,9.61959707]
[1746535727890,67.36043357,143.34,143.33,9.61959707]
[1746535728198,74.33685327,143.34,143.33,9.61959707]
[1746535733475,74.33685327,143.34,143.32,9.61959707]
[1746535739200,67.36043357,143.34,143.32,9.61959707]
[1746535739499,74.33689473,143.34,143.32,9.61959707]
[1746535741688,9.61959707,143.33,143.3,13.84]
[1746535742007,9.61959707,143.32,143.28,9.61959707]
[1746535742606,67.36043357,143.31,143.27,11.20679707]
[1746535742812,76.98003064,143.31,143.27,9.61959707]
[1746535743018,9.61959707,143.3,143.26,20.2143]
[1746535743317,9.61959707,143.27,143.23,11.15499707]
[1746535743490,9.61959707,143.27,143.23,37.15499707]
[1746535743688,83.95946829,143.28,143.24,9.61959707]
[1746535743913,67.36043357,143.28,143.27,9.61959707]
[1746535744113,74.33802351,143.32,143.27,41.92129707]
[1746535744313,74.33802351,143.32,143.31,9.61959707]
[1746535744314,67.36043357,143.32,143.31,9.61959707]
[1746535744888,74.336419,143.35,143.31,9.61959707]
[1746535745111,67.36043357,143.35,143.33,9.61959707]
[1746535745814,74.33640791,143.35,143.33,15.02706581]
[1746535748226,67.36043357,143.35,143.33,15.02706581]
[1746535748413,67.36043357,143.35,143.34,15.02706581]
[1746535748745,74.3363666,143.35,143.31,13.82]
[1746535748924,67.36043357,143.35,143.34,15.02706581]
[1746535751624,67.36043357,143.37,143.34,15.02706581]
[1746535751832,74.33553552,143.37,143.35,15.02706581]
[1746535752196,67.36043357,143.37,143.35,15.02706581]
[1746535752396,74.33541033,143.37,143.35,15.02706581]
[1746535752596,67.36043357,143.37,143.35,15.02706581]
[1746535752927,67.36043357,143.37,143.32,13.08939324]
[1746535753311,67.36043357,143.37,143.35,15.02706581]
[1746535753509,74.33550384,143.37,143.32,13.08939324]
[1746535753717,74.33550384,143.37,143.35,15.02706581]
[1746535754410,67.36043357,143.37,143.35,15.02706581]
[1746535755636,67.36043357,143.37,143.36,15.02706581]
[1746535755948,67.36043357,143.37,143.35,6.97571379]
[1746535756148,67.36043357,143.37,143.36,15.02706581]
[1746535757057,67.36043357,143.41,143.36,41.02706581]
[1746535757232,67.36043357,143.41,143.39,15.02706581]
[1746535757426,67.36043357,143.41,143.4,15.02706581]
[1746535766643,82.38749938,143.41,143.36,39.82]
[1746535766864,15.02706581,143.38,143.34,8.2743]
[1746535767158,15.02706581,143.37,143.32,39.82]
[1746535767338,15.02706581,143.36,143.32,39.82]
[1746535767542,15.02706581,143.36,143.32,54.84706581]
[1746535767859,76.97968206,143.35,143.3,1.5691]
[1746535768035,74.33503975,143.38,143.34,9.61924849]
[1746535768238,67.36043357,143.41,143.37,9.61924849]
[1746535768557,67.36043357,143.41,143.38,9.61924849]
[1746535768748,76.97968206,143.41,143.37,9.61924849]
[1746535768951,67.36043357,143.41,143.38,9.61924849]
[1746535769258,6.97398702,143.39,143.36,9.61924849]
[1746535769469,6.97398702,143.39,143.34,9.61924849]
[1746535769470,9.61924849,143.38,143.34,9.61924849]
[1746535769760,15.02749561,143.37,143.33,28.84749561]
[1746535771472,6.97523174,143.37,143.34,15.02749561]
[1746535772065,67.36043357,143.36,143.33,15.02749561]
[1746535772261,67.36043357,143.35,143.33,15.02749561]
[1746535772563,67.36043357,143.35,143.34,15.02749561]
[1746535773151,67.36043357,143.35,143.31,32.97783139]
[1746535773465,67.36043357,143.35,143.34,15.02749561]
[1746535774573,74.33461845,143.39,143.34,22.00391531]
[1746535774748,67.36043357,143.39,143.37,15.02749561]
[1746535775668,67.36043357,143.41,143.38,15.02749561]
[1746535775970,67.36043357,143.41,143.4,15.02749561]
[1746535777654,74.333448,143.41,143.38,15.02749561]
[1746535778575,89.36094361,143.41,143.37,15.02749561]
[1746535778752,15.02749561,143.38,143.34,13.82]
[1746535778949,89.36288907,143.37,143.32,7.6082]
[1746535779259,67.36043357,143.36,143.33,15.02749561]
[1746535779855,67.36043357,143.36,143.34,15.02749561]
[1746535781059,74.33593473,143.36,143.34,15.02749561]
[1746535783459,74.33593473,143.36,143.34,15.11256161]
[1746535784084,74.33593473,143.36,143.35,15.02749561]
[1746535784785,67.36043357,143.36,143.35,15.02749561]
[1746535785864,67.36043357,143.36,143.35,22.00342864]
[1746535786282,67.36043357,143.36,143.35,15.02749561]
[1746535787896,74.33463908,143.39,143.35,15.02749561]
[1746535788092,74.33463908,143.39,143.37,15.02749561]
[1746535791185,74.33463908,143.39,143.36,15.02749561]
[1746535792380,74.33463908,143.39,143.37,15.02749561]
[1746535793399,74.33463908,143.39,143.36,15.02749561]
[1746535793900,67.36043357,143.38,143.36,15.02749561]
[1746535794099,67.36043357,143.38,143.37,15.02749561]
[1746535794904,74.33492625,143.38,143.34,0.085066]
[1746535795109,15.02749561,143.37,143.34,0.085066]
[1746535795978,74.33492625,143.38,143.34,0.085066]
[1746535795979,15.02749561,143.35,143.34,0.085066]
[1746535797109,22.00342864,143.35,143.34,0.085066]
[1746535800622,6.97593303,143.35,143.34,0.085066]
[1746535800818,6.97495989,143.37,143.34,15.11256161]
[1746535801623,22.0024555,143.37,143.34,0.085066]
[1746535801811,39.43985523,143.37,143.34,0.085066]
[1746535802013,15.02749561,143.36,143.34,0.085066]
[1746535802326,15.02749561,143.35,143.34,0.085066]
[1746535803828,15.02749561,143.36,143.34,0.085066]
[1746535804010,6.97593303,143.35,143.34,0.085066]
[1746535805223,136.5,143.38,143.34,0.085066]
[1746535805429,136.5,143.38,143.36,15.02749561]
[1746535805603,6.97350069,143.4,143.37,15.02749561]
[1746535805922,6.97350069,143.4,143.38,15.02749561]
[1746535806631,6.97350069,143.4,143.37,15.02749561]
[1746535806925,15.02749561,143.38,143.34,0.085066]
[1746535807132,15.02749561,143.36,143.34,0.085066]
[1746535807297,162.5,143.39,143.34,15.11256161]
[1746535807496,151.52749561,143.39,143.35,15.02749561]
[1746535808532,15.02749561,143.38,143.34,15.11256161]
[1746535808830,6.97447342,143.38,143.34,15.11256161]
[1746535808999,22.00196903,143.38,143.34,15.11256161]
[1746535809809,15.02749561,143.36,143.34,0.085066]
[1746535810009,67.4,143.35,143.34,0.085066]
[1746535810913,74.37593303,143.35,143.34,0.085066]
[1746535811915,67.4,143.35,143.34,15.11256161]
[1746535815023,74.37517579,143.37,143.34,15.11256161]
[1746535815230,74.37517579,143.37,143.36,15.02749561]
[1746535816124,74.37517579,143.37,143.35,15.02749561]
[1746535817330,74.37517579,143.37,143.34,0.085066]
[1746535817529,74.37517579,143.37,143.35,15.02749561]
[1746535819730,74.37517579,143.37,143.36,15.02749561]
[1746535819927,74.37517579,143.37,143.35,15.02749561]
[1746535820747,74.37517579,143.37,143.34,0.085066]
[1746535820947,15.02749561,143.36,143.34,0.085066]
[1746535821251,15.02749561,143.35,143.34,0.085066]
[1746535821543,22.00342864,143.35,143.34,0.085066]
[1746535825015,24.41235962,143.37,143.34,0.085066]
[1746535825443,15.02749561,143.36,143.34,0.085066]
[1746535826348,6.97495989,143.37,143.34,0.085066]
[1746535826652,6.97495989,143.37,143.35,15.02749561]
[1746535826858,67.4,143.36,143.35,15.02749561]
[1746535827943,74.37544642,143.36,143.35,15.02749561]
[1746535828143,74.37544642,143.36,143.34,15.11256161]
[1746535829049,15.02749561,143.35,143.34,0.085066]
[1746535829223,74.37544642,143.36,143.34,0.085066]
[1746535829427,89.40294203,143.36,143.34,0.085066]
[1746535829745,15.02749561,143.35,143.34,0.085066]
[1746535830353,22.00342864,143.35,143.34,0.085066]
[1746535832553,6.97593303,143.35,143.34,0.085066]
[1746535835250,22.00342864,143.35,143.34,0.085066]
[1746535836553,6.97593303,143.35,143.34,0.085066]
[1746535840155,143.47564095,143.36,143.34,0.085066]
[1746535841455,74.37564095,143.36,143.34,0.085066]
[1746535841651,67.4,143.36,143.35,15.02749561]
[1746535845154,67.4,143.36,143.34,15.11256161]
[1746535845341,74.37558119,143.36,143.34,0.085066]
[1746535845744,74.37558119,143.36,143.34,15.11256161]
[1746535848073,67.4,143.35,143.34,15.11256161]
[1746535851977,67.4,143.35,143.34,22.08898131]
[1746535852467,67.4,143.35,143.34,15.11256161]
[1746535852671,67.4,143.35,143.34,0.085066]
[1746535852845,74.37593303,143.35,143.34,0.085066]
[1746535853844,6.97593303,143.35,143.34,0.085066]
[1746535854044,6.97544642,143.36,143.34,0.085066]
[1746535860774,15.02749561,143.35,143.34,0.085066]
[1746535861474,22.00294203,143.36,143.34,0.085066]
[1746535862189,15.02749561,143.35,143.34,0.085066]
[1746535863881,22.00342864,143.35,143.34,0.085066]
[1746535868471,40.6530775,143.35,143.34,0.085066]
[1746535873393,66.6530775,143.35,143.34,0.085066]
[1746535877394,51.62558189,143.35,143.34,0.085066]
[1746535877603,66.6530775,143.35,143.34,0.085066]
[1746535881815,40.6530775,143.35,143.34,0.085066]
[1746535882803,22.00342864,143.35,143.34,0.085066]
[1746535883007,6.97593303,143.35,143.34,0.085066]
[1746535883813,6.97544642,143.36,143.34,0.085066]
[1746535885409,6.97447342,143.38,143.35,15.02749561]
[1746535886607,6.97447342,143.38,143.36,15.02749561]
[1746535886791,6.97415268,143.39,143.37,15.02749561]
[1746535886992,67.4,143.38,143.37,15.02749561]
[1746535887608,74.37478395,143.38,143.35,1.5931]
[1746535887985,15.02749561,143.37,143.35,1.5931]
[1746535888207,82.42749561,143.36,143.34,0.085066]
[1746535888506,237.57714447,143.35,143.34,0.085066]
[1746535889708,244.5530775,143.35,143.34,0.085066]
[1746535889910,225.90342864,143.35,143.34,0.085066]
[1746535890100,143.47593303,143.35,143.34,0.085066]
[1746535890988,158.50342864,143.35,143.34,0.085066]
[1746535893615,143.47593303,143.35,143.34,0.085066]
[1746535893792,158.50342864,143.35,143.34,0.085066]
[1746535896517,143.47593303,143.35,143.34,0.085066]
[1746535896892,158.50342864,143.35,143.34,0.085066]
[1746535902215,158.41836264,143.35,143.31,15.02749561]
[1746535902597,143.39086703,143.35,143.31,15.02749561]
[1746535903414,158.41836264,143.35,143.31,15.02749561]
[1746535904798,136.414934,143.35,143.33,15.02749561]
[1746535904998,136.414934,143.35,143.34,15.02749561]
[1746535905203,6.97507255,143.37,143.34,21.33479561]
[1746535906122,74.37507255,143.37,143.34,21.33479561]
[1746535906625,74.37507255,143.37,143.35,15.02749561]
[1746535907128,67.4,143.37,143.35,15.02749561]
[1746535907319,67.4,143.37,143.36,15.02749561]
[1746535910835,74.37415941,143.39,143.36,15.02749561]
[1746535911014,74.37415941,143.39,143.38,15.02749561]
[1746535911210,74.37415941,143.39,143.37,15.02749561]
[1746535911698,67.4,143.39,143.37,15.02749561]
[1746535912630,74.37440904,143.39,143.37,15.02749561]
[1746535913105,67.4,143.39,143.37,15.02749561]
[1746535913305,67.4,143.39,143.38,15.02749561]
[1746535916934,74.37320427,143.41,143.38,15.02749561]
[1746535917235,74.37320427,143.41,143.39,15.02749561]
[1746535920033,74.37320427,143.41,143.39,15.02749561]
[1746535920437,67.4,143.41,143.39,15.02749561]
[1746535920611,74.3730996,143.41,143.39,15.02749561]
[1746535922136,74.3730996,143.41,143.37,1.5373]
[1746535922338,74.3730996,143.41,143.39,15.02749561]
[1746535922543,74.3730996,143.41,143.38,15.02749561]
[1746535922920,67.4,143.4,143.38,15.02749561]
[1746535923761,74.37380187,143.4,143.38,15.02749561]
[1746535935951,74.37380187,143.4,143.39,15.02749561]
[1746535936253,67.4,143.4,143.39,15.02749561]
[1746535936643,74.37350069,143.4,143.39,15.02749561]
[1746535936852,74.37350069,143.4,143.38,15.02749561]
[1746535937238,74.37350069,143.4,143.37,15.02749561]
[1746535937446,15.02749561,143.39,143.34,20.1073]
[1746535937639,82.42749561,143.38,143.34,35.13479561]
[1746535937949,82.42749561,143.38,143.34,6.3073]
[1746535938138,82.42749561,143.38,143.34,21.33479561]
[1746535938656,82.42749561,143.38,143.35,15.02749561]
[1746535938859,6.97495989,143.37,143.35,15.02749561]
[1746535940057,67.4,143.36,143.34,21.33479561]
[1746535940262,67.4,143.36,143.34,15.02749561]
[1746535940766,67.4,143.36,143.33,1.6553]
[1746535940969,6.97593303,143.35,143.33,16.68279561]
[1746535941444,6.97593303,143.35,143.32,15.02749561]
[1746535942139,67.4,143.34,143.31,21.30119561]
[1746535942352,67.4,143.34,143.31,15.02749561]
[1746535942951,6.97690643,143.33,143.31,15.02749561]
[1746535943958,6.97690643,143.33,143.3,13.8]
[1746535944152,6.97690643,143.33,143.31,15.02749561]
[1746535944347,6.97690643,143.33,143.3,28.82749561]
[1746535944547,22.00440204,143.33,143.29,1.5908]
[1746535944768,22.00440204,143.33,143.29,16.61829561]
[1746535945979,39.44666813,143.33,143.29,16.61829561]
[1746535946189,39.44666813,143.33,143.29,15.02749561]
[1746535946359,82.42749561,143.32,143.29,15.02749561]
[1746535946672,67.4,143.31,143.29,15.02749561]
[1746535948287,6.97836706,143.3,143.26,1.5069]
[1746535948462,74.37836706,143.3,143.27,15.02749561]
[1746535949156,74.37836706,143.3,143.26,1.5069]
[1746535949360,89.40586267,143.3,143.26,15.02749561]
[1746535950475,67.4,143.29,143.26,15.02749561]
[1746535950867,82.42749561,143.29,143.25,15.02749561]
[1746535951979,82.42749561,143.29,143.24,6.5602]
[1746535952179,82.42749561,143.29,143.25,15.02749561]
[1746535952580,6.97934115,143.28,143.25,15.02749561]
[1746535952779,67.4,143.27,143.25,15.02749561]
[1746535953277,67.4,143.27,143.26,15.02749561]
[1746535953479,67.4,143.27,143.25,15.02749561]
[1746535954163,6.98031551,143.26,143.25,15.02749561]
[1746535954881,74.38004513,143.27,143.25,15.02749561]
[1746535957483,74.38004513,143.27,143.24,6.5602]
[1746535957484,67.4,143.27,143.26,15.02749561]
[1746535961269,67.4,143.27,143.26,22.00781112]
[1746535961894,74.37858184,143.3,143.26,22.00781112]
[1746535962074,74.37858184,143.3,143.28,15.02749561]
[1746535966174,74.37858184,143.3,143.27,15.02749561]
[1746535970199,106.8519951,143.3,143.26,15.02749561]
[1746535970370,15.02749561,143.29,143.25,15.02749561]
[1746535970575,67.4,143.28,143.25,15.02749561]
[1746535970775,67.4,143.28,143.26,15.02749561]
[1746535972485,67.4,143.28,143.27,15.02749561]
[1746535973980,6.47852347,143.3,143.27,15.02749561]
[1746535974175,6.47852347,143.3,143.28,15.02749561]
[1746535974700,67.4,143.31,143.29,15.02749561]
[1746535974896,67.4,143.31,143.3,15.02749561]
[1746535979598,74.37788012,143.31,143.3,15.02749561]
[1746535979901,74.37788012,143.31,143.29,15.02749561]
[1746535980283,89.40537573,143.31,143.25,6.9803835]
[1746535980480,67.4,143.3,143.27,15.02749561]
[1746535980686,67.4,143.3,143.29,15.02749561]
[1746535981998,74.37712269,143.33,143.29,15.02749561]
[1746535982196,74.37712269,143.33,143.31,15.02749561]
[1746535982587,74.37712269,143.33,143.29,15.02749561]
[1746535982588,89.4046183,143.33,143.29,15.02749561]
[1746535982781,15.02749561,143.32,143.28,15.02749561]
[1746535983178,89.4046183,143.33,143.29,15.02749561]
[1746535983379,106.84688439,143.33,143.29,15.02749561]
[1746535983593,74.37712269,143.33,143.31,15.02749561]
[1746535985699,74.37712269,143.33,143.32,15.02749561]
[1746535986102,74.37712269,143.33,143.31,15.02749561]
[1746535987382,74.37712269,143.33,143.32,15.02749561]
[1746535987702,67.4,143.33,143.32,15.02749561]
[1746535988904,74.37595759,143.35,143.32,15.02749561]
[1746535989090,74.37595759,143.35,143.34,15.02749561]
[1746535989605,67.4,143.35,143.34,15.02749561]
[1746535989908,6.97567932,143.36,143.34,15.02749561]
[1746535990807,6.97495989,143.37,143.35,15.02749561]
[1746535990988,6.97495989,143.37,143.36,15.02749561]
[1746535990989,67.4,143.37,143.36,15.02749561]
[1746535991190,6.97377266,143.4,143.36,15.02749561]
[1746535991492,6.97377266,143.4,143.37,15.02749561]
[1746535991697,22.00126827,143.4,143.36,15.02749561]
[1746535992006,15.02749561,143.38,143.34,15.02749561]
[1746535992910,6.97495989,143.37,143.34,15.02749561]
[1746535993114,6.97495989,143.37,143.33,13.78]
[1746535993619,22.0024555,143.37,143.33,13.78]
[1746535993797,15.02749561,143.36,143.32,15.02749561]
[1746535993992,67.4,143.35,143.32,15.02749561]
[1746535994798,6.9764197,143.34,143.32,15.02749561]
[1746535995739,6.9764197,143.34,143.31,15.02749561]
[1746535995894,22.00391531,143.34,143.31,15.02749561]
[1746535996195,6.9764197,143.34,143.31,15.02749561]
[1746535996403,6.9764197,143.34,143.32,15.02749561]
[1746535996718,6.9764197,143.34,143.29,20.75876553]
[1746535996902,6.9764197,143.34,143.32,15.02749561]
[1746535997294,67.4,143.35,143.33,15.02749561]
[1746535997502,67.4,143.35,143.34,15.02749561]
[1746536000416,67.4,143.35,143.31,8.53445005]
[1746536000605,67.4,143.35,143.34,15.02749561]
[1746536000805,74.37516999,143.37,143.34,15.02749561]
[1746536001111,67.4,143.37,143.36,15.02749561]
[1746536002017,82.42749561,143.4,143.36,15.02749561]
[1746536002217,6.97405744,143.39,143.36,15.02749561]
[1746536004828,22.00155305,143.39,143.35,15.02749561]
[1746536005205,15.02749561,143.38,143.34,15.02749561]
[1746536005512,15.02749561,143.36,143.32,15.02749561]
[1746536005724,15.02749561,143.35,143.31,1.5567]
[1746536006030,15.02749561,143.34,143.3,15.02749561]
[1746536006424,15.02749561,143.35,143.31,15.02749561]
[1746536007533,6.9764197,143.34,143.31,15.02749561]
[1746536009533,22.00391531,143.34,143.31,15.02749561]
[1746536009837,74.37723323,143.33,143.31,15.02749561]
[1746536017342,74.37723323,143.33,143.32,15.02749561]
[1746536018929,74.37723323,143.33,143.31,15.02749561]
[1746536021155,74.37723323,143.33,143.29,19.8023]
[1746536021367,74.37723323,143.33,143.31,15.02749561]
[1746536022058,74.37723323,143.33,143.32,15.02749561]
[1746536024158,74.37723323,143.33,143.31,15.02749561]
[1746536024531,74.37723323,143.33,143.29,19.8023]
[1746536024733,74.37723323,143.33,143.31,15.02749561]
[1746536025967,74.37723323,143.33,143.29,19.8023]
[1746536026150,74.37723323,143.33,143.31,15.02749561]
[1746536026976,74.37723323,143.33,143.32,15.02749561]
[1746536029268,74.37723323,143.33,143.31,15.02749561]
[1746536031768,74.37723323,143.33,143.31,9.62008482]
[1746536035373,74.37723323,143.33,143.3,9.62008482]
[1746536036589,9.62008482,143.32,143.27,15.3823]
[1746536036750,9.62008482,143.31,143.27,25.00238482]
[1746536037057,77.02008482,143.31,143.27,25.00238482]
[1746536037450,77.02008482,143.31,143.27,23.40008482]
[1746536037653,67.4,143.31,143.28,9.62008482]
[1746536037866,67.4,143.31,143.28,15.03864153]
[1746536038776,74.37807518,143.31,143.29,15.03864153]
[1746536039484,74.37807518,143.31,143.27,13.78]
[1746536039684,74.37807518,143.31,143.29,15.03864153]
[1746536040280,67.4,143.31,143.29,15.03864153]
[1746536040483,67.4,143.31,143.27,20.759595]
[1746536040484,67.4,143.31,143.3,15.03864153]
[1746536040685,74.37669931,143.34,143.3,22.01700607]
[1746536040877,74.37669931,143.34,143.32,15.03864153]
[1746536041782,74.37669931,143.34,143.31,15.03864153]
[1746536042879,74.37669931,143.34,143.32,15.03864153]
[1746536051093,67.4,143.34,143.33,15.03864153]
[1746536053368,100.37519356,143.37,143.33,15.03864153]
[1746536053568,67.4,143.36,143.35,15.03864153]
[1746536054791,74.37544642,143.36,143.35,15.03864153]
[1746536056109,74.37544642,143.36,143.34,15.03864153]
[1746536060807,67.4,143.38,143.35,15.03864153]
[1746536060992,67.4,143.38,143.37,15.03864153]
[1746536061198,74.37370562,143.4,143.37,15.03864153]
[1746536061420,67.4,143.4,143.39,15.03864153]
[1746536061594,74.37350069,143.4,143.39,15.03864153]
[1746536062091,67.4,143.4,143.39,15.03864153]
[1746536062427,74.37350069,143.4,143.39,15.03864153]
[1746536065217,74.37350069,143.4,143.38,15.03864153]
[1746536065720,74.37350069,143.4,143.39,15.03864153]
[1746536068023,74.37350069,143.4,143.38,15.03864153]
[1746536072321,91.80725243,143.4,143.37,15.03864153]
[1746536072509,106.84589396,143.4,143.36,15.03864153]
[1746536073229,91.80725243,143.4,143.37,15.03864153]
[1746536073911,106.84589396,143.4,143.36,15.03864153]
[1746536077634,91.80725243,143.4,143.37,15.03864153]
[1746536079708,91.80725243,143.4,143.37,9.61309937]
[1746536081211,91.80725243,143.4,143.38,9.61309937]
[1746536081809,91.80725243,143.4,143.37,9.61309937]
[1746536083541,101.4203518,143.4,143.34,1.6048]
[1746536083923,101.4203518,143.4,143.36,9.61309937]
[1746536087916,9.61309937,143.38,143.32,6.015]
[1746536088114,9.61309937,143.37,143.32,15.62809937]
[1746536088431,67.4,143.36,143.33,9.61309937]
[1746536090040,6.97593303,143.35,143.33,9.61309937]
[1746536091819,6.97593303,143.35,143.33,15.02748007]
[1746536099254,82.42748007,143.34,143.3,16.53758007]
[1746536099431,67.4,143.33,143.3,15.02748007]
[1746536101259,6.97739324,143.32,143.3,15.02748007]
[1746536102573,74.37714083,143.33,143.31,15.02748007]
[1746536102874,6.97659716,143.34,143.32,15.02748007]
[1746536103068,6.97659716,143.34,143.33,15.02748007]
[1746536103777,67.4,143.35,143.33,15.02748007]
[1746536104079,67.4,143.35,143.34,15.02748007]
[1746536105474,74.37593303,143.35,143.34,15.02748007]
[1746536105673,74.37593303,143.35,143.33,21.22548007]
[1746536106664,74.37593303,143.35,143.34,15.02748007]
[1746536107170,67.4,143.35,143.34,15.02748007]
[1746536108458,74.37593303,143.35,143.34,15.02748007]
[1746536110369,74.37593303,143.35,143.33,15.02748007]
[1746536112552,74.37593303,143.35,143.34,15.02748007]
[1746536112952,67.4,143.35,143.34,15.02748007]
[1746536118993,67.4,143.35,143.32,6.97715851]
[1746536119286,67.4,143.35,143.34,15.02748007]
[1746536119878,74.37593303,143.35,143.33,9.61604979]
[1746536120977,67.4,143.35,143.33,9.61604979]
[1746536121886,67.4,143.35,143.33,15.02821145]
[1746536123887,74.37598282,143.35,143.33,15.02821145]
[1746536125167,74.37598282,143.35,143.32,15.02821145]
[1746536125994,74.37598282,143.35,143.31,13.76]
[1746536126288,74.37598282,143.35,143.31,28.78821145]
[1746536126785,74.37598282,143.35,143.31,15.02821145]
[1746536126990,67.4,143.34,143.32,15.02821145]
[1746536127205,6.97690643,143.33,143.31,15.02821145]
[1746536127366,6.97690643,143.33,143.3,6.0002]
[1746536127691,6.97690643,143.33,143.3,21.02841145]
[1746536131105,6.97690643,143.33,143.31,15.02821145]
[1746536132113,74.37661654,143.34,143.31,15.02821145]
[1746536132506,74.37661654,143.34,143.32,15.02821145]
[1746536132890,67.4,143.33,143.32,15.02821145]
[1746536135793,74.37690643,143.33,143.32,15.02821145]
[1746536136310,74.37690643,143.33,143.31,15.02821145]
[1746536137221,67.4,143.33,143.31,15.02821145]
[1746536137719,74.37691079,143.33,143.31,15.02821145]
[1746536140214,67.4,143.33,143.32,15.02821145]
[1746536140393,74.37690643,143.33,143.32,15.02821145]
[1746536141712,74.37690643,143.33,143.32,9.61935123]
[1746536142912,74.37690643,143.33,143.31,9.61935123]
[1746536144314,67.4,143.33,143.32,9.61935123]
[1746536148235,74.37519577,143.37,143.32,16.5964962]
[1746536148409,67.4,143.36,143.34,9.61935123]
[1746536148615,67.4,143.36,143.35,9.61935123]
[1746536151105,67.4,143.36,143.35,22.81678426]
[1746536151308,67.4,143.4,143.35,61.29418918]
[1746536151518,67.4,143.4,143.36,38.47740492]
[1746536151820,67.4,143.4,143.38,9.61935123]
[1746536152400,67.4,143.4,143.39,9.61935123]
[1746536152605,74.37274443,143.42,143.39,9.61935123]
[1746536153427,74.37274443,143.42,143.36,6.97528299]
[1746536153630,83.99209566,143.42,143.38,9.61935123]
[1746536153927,89.3891032,143.42,143.38,15.01635877]
[1746536154225,74.37274443,143.42,143.39,15.01635877]
[1746536156032,89.3891032,143.42,143.38,15.01635877]
[1746536156709,15.01635877,143.41,143.37,15.01635877]
[1746536156908,82.41635877,143.4,143.36,15.01635877]
[1746536157306,15.01635877,143.39,143.35,21.23785877]
[1746536157837,6.97447342,143.38,143.35,21.23785877]
[1746536158211,6.97447342,143.38,143.35,15.01635877]
[1746536158731,74.37447342,143.38,143.36,15.01635877]
[1746536159230,67.4,143.38,143.37,15.01635877]
[1746536161330,74.37450154,143.38,143.36,21.13145877]
[1746536161733,67.4,143.38,143.36,21.13145877]
[1746536162125,67.4,143.38,143.37,15.01635877]
[1746536163643,74.37447342,143.38,143.37,15.01635877]
[1746536163845,74.37447342,143.38,143.36,21.13145877]
[1746536164057,74.37447342,143.38,143.36,15.01635877]
[1746536164249,74.37447342,143.38,143.35,1.5426]
[1746536164450,74.37447342,143.38,143.36,15.01635877]
[1746536164822,67.4,143.38,143.36,15.01635877]
[1746536165640,74.37461242,143.38,143.36,15.01635877]
[1746536166124,67.4,143.38,143.37,15.01635877]
[1746536167348,74.37447342,143.38,143.36,15.01635877]
[1746536169455,74.37447342,143.38,143.35,15.01635877]
[1746536169632,15.01635877,143.36,143.33,13.74]
[1746536169831,67.4,143.35,143.32,15.01635877]
[1746536170450,67.4,143.35,143.33,15.01635877]
[1746536170755,67.4,143.35,143.34,15.01635877]
[1746536172848,67.4,143.35,143.3,26.0]
[1746536173059,74.37600106,143.35,143.32,15.01635877]
[1746536173635,74.37600106,143.35,143.29,28.36961718]
[1746536173835,89.39235983,143.35,143.31,15.01635877]
[1746536174927,74.37600106,143.35,143.32,15.01635877]
[1746536175134,67.4,143.35,143.33,15.01635877]
[1746536175332,67.4,143.34,143.33,15.01635877]
[1746536177055,67.4,143.34,143.33,21.9932652]
[1746536177454,67.4,143.37,143.33,21.9932652]
[1746536177658,67.4,143.37,143.35,15.01635877]
[1746536177954,74.37498258,143.37,143.35,15.01635877]
[1746536178356,74.37498258,143.37,143.34,15.01635877]
[1746536180861,67.4,143.36,143.34,15.01635877]
[1746536181641,74.37558375,143.36,143.34,15.01635877]
[1746536181849,89.39194252,143.36,143.29,21.3909]
[1746536182159,82.41635877,143.35,143.31,15.01635877]
[1746536182338,67.4,143.35,143.31,15.01635877]
[1746536182738,67.4,143.35,143.32,15.01635877]
[1746536182959,67.4,143.34,143.32,15.01635877]
[1746536183546,67.4,143.34,143.33,15.01635877]
[1746536184670,67.4,143.34,143.32,15.01635877]